Cogmind - Beta 17.1 @@@ ROGUE MODE // 2026.09.17 @ 07:34:02 Player: Kite Result: Destroyed by RS-PY5(j) with Overtuned Pulse Rifle Performance ------------- Evolutions (0) 0 Regions Visited (5) 1000 Robots Destroyed (55) 275 Value Destroyed (1251) 1251 Prototype IDs (23) 460 Alien Tech Used (0) 0 Bonus (1081) 1081 TOTAL SCORE: 4067 Bonus ------- Follower Combat Kills 281 Registered with UFD 300 Met Optimus in HQ 500 Cogmind --------- Core Integrity 0/250 Matter 45/300 Energy 68/100 System Corruption 0% Temperature Cool (23) Movement Core (1450) Ox28 Location -8/Scraptown Parts ------- > --- POWER (1) -------- (None) > --- PROPULSION (2) --- (None) > --- UTILITY (2) ------ Huge Storage Unit > --- WEAPON (2) ------- Mini Grenade Launcher Companion Sword > --- INVENTORY (25) --- Maxwheels Deep Structural Scanner Advanced Sensor Array Advanced Signal Interpreter Surveybot 17 Chip Scrapoid Pod Scrapoid Pod Scrapoid Pod Scrapoid Pod Scrapoid Pod Scrapoid Pod Datajack Experimental Plasma Cutter CPS Tube (2) CPS Tube (2) Peak State ------------ > --- POWER ------------ Light Deuterium Engine > --- PROPULSION ------- Armored Huge Wheel > --- UTILITY ---------- Huge Storage Unit Advanced Terrain Scanner > --- WEAPON ----------- Experimental Plasma Cutter Companion Sword > --- INVENTORY -------- Deuterium Engine Wheel Compact Wheel Maxwheels Deep Structural Scanner Advanced Sensor Array Advanced Signal Interpreter Surveybot 17 Chip Hacking Suite Hacking Suite System Shield Scrapoid Pod Mini Grenade Launcher Datajack CPS Tube CPS Tube CPS Tube CPS Tube CPS Tube CPS Tube DRS Beacon [Rating: 42] Favorites ----------- Power Light Ion Engine Engine Light Ion Engine Propulsion Light Treads Treads Light Treads Wheel Compact Wheel Utility Huge Storage Unit Device Disposable Heat Sink Storage Huge Storage Unit Weapon Advanced Beam Cannon Energy Gun EM Pulse Gun Energy Cannon Advanced Beam Cannon Launcher Mini Grenade Launcher Special Weapon Experimental Plasma Cutter Impact Weapon Hammer Slashing Weapon Companion Sword Special Melee Weapon Datajack Build | -11 -10 -10 -10 -8 -8 ------- Run | Yrd Mat Min Sub Rec Scr Slots Evolved . | . . . . . . Power . | . . . . . . Propulsion . | . . . . . . Utility . | . . . . . . Weapon . | . . . . . . Parts Attached 39 | 6 13 . 10 . 10 Power 6 | 1 1 . 2 . 2 Engine 6 | 1 1 . 2 . 2 Core . | . . . . . . Reactor . | . . . . . . Propulsion 11 | 2 2 . 5 . 2 Treads 4 | 2 . . 2 . . Leg . | . . . . . . Wheel 7 | . 2 . 3 . 2 Hover . | . . . . . . Flight . | . . . . . . Utility 7 | 1 4 . 1 . 1 Device 4 | . 2 . 1 . 1 Storage 3 | 1 2 . . . . Processor . | . . . . . . Hackware . | . . . . . . Protection . | . . . . . . Artifact . | . . . . . . Weapon 15 | 2 6 . 2 . 5 Energy Gun 2 | 2 . . . . . Energy Cannon 4 | . 3 . 1 . . Ballistic Gun . | . . . . . . Ballistic Cannon . | . . . . . . Launcher 2 | . 1 . 1 . . Special Weapon 1 | . . . . . 1 Impact Weapon 2 | . 2 . . . . Slashing Weapon 3 | . . . . . 3 Piercing Weapon . | . . . . . . Special Melee Weapon 1 | . . . . . 1 Unidentified Prototypes 3 | . 1 . . . 2 Parts Lost 11 | . 1 1 6 . 3 Power 4 | . 1 . 2 . 1 Propulsion 5 | . . 1 3 . 1 Utility 1 | . . . . . 1 Weapon 1 | . . . 1 . . Highest Loss Streak 3 | . 1 1 3 . 3 To Critical Strikes . | . . . . . . Average Backups 20 | 1 17 24 23 22 16 Power . | . 1 1 . . 1 Propulsion 5 | . 1 3 8 9 3 Utility 2 | . 4 5 . 1 4 Weapon 10 | . 9 14 14 11 3 Tool/Special . | . . . . . . Unused Backups 49 | . 4 2 6 4 33 Power . | . . . . . . Propulsion 10 | . 1 1 . . 8 Utility 13 | . 2 1 2 1 7 Weapon 14 | . 1 . 4 3 6 Tool/Special 12 | . . . . . 12 Average Slot Usage (%) 91 | . 97 99 98 100 75 Engine 13 | . 13 14 13 14 12 Treads 18 | . 7 23 23 28 8 Wheel 6 | . 20 4 3 . 11 Device 12 | . 11 14 14 14 8 Storage 13 | . 14 14 14 14 13 Energy Cannon 19 | . 23 28 27 28 . Impact Weapon 1 | . 2 . . . 5 Slashing Weapon 4 | . . . . . 13 Peak Build Rating 42 | 6 15 16 19 20 42 Average Rating 18 | 4 13 15 16 19 23 On Entrance 12 | . 6 15 16 19 20 Avg Prop Armor Cover (%) 13 | . . . 13 . . Naked Turns . | . . . . . . Heaviest Build 94 | 12 94 94 94 92 92 Greatest Support 40 | 40 40 40 40 40 40 Greatest Overweight (x) 5 | . 5 5 5 2 3 Average Overweight (x) 2 | . 1 2 2 2 2 Largest Inventory Capacity 25 | 8 25 25 25 25 25 Average Capacity 24 | 7 21 25 25 25 24 Most Carried 25 | 3 25 25 25 25 25 Average Carried 22 | 1 17 24 23 24 20 Final Capacity 25 | 8 25 25 25 25 25 Final Carried 25 | 3 24 25 25 25 24 Class Distribution -------------------- 100% | Mutant Dominant Class ---------------- Mutant | -10/Materials Mutant | -10/Mines Mutant | -10/Subcaves Mutant | -8/Recycling Mutant | -8/Scraptown Resources | -11 -10 -10 -10 -8 -8 ----------- Run | Yrd Mat Min Sub Rec Scr Matter Collected 910 | 213 320 127 210 . 40 Remotely . | . . . . . . Salvage Created 1939 | 112 520 477 585 208 37 Parts 108 | 3 39 18 38 8 2 Haulers Intercepted 1 | . 1 . . . . Recyclers Shooed 3 | 1 . 2 . . . Parts Field Recycled . | . . . . . . Retrieved Matter . | . . . . . . Parts Self-Destructed 20 | . . . 20 . . Prevented . | . . . . . . Parts Restored . | . . . . . . Kills | -11 -10 -10 -10 -8 -8 ------- Run | Yrd Mat Min Sub Rec Scr Combat Hostiles Destroyed 38 | . 11 8 16 2 1 Cannons 29 | . 8 7 12 2 . AOE 6 | . 3 . 2 . 1 Classes Destroyed 13 | 2 5 1 4 . 1 Worker 1 | . . 1 . . . Tunneler 3 | 1 2 . . . . Hauler 1 | . 1 . . . . Recycler 6 | 1 1 3 . 1 . Operator 1 | . 1 . . . . Turret 2 | . . . 2 . . Watcher 2 | . 2 . . . . Swarmer 16 | . 6 5 5 . . Grunt 11 | . 5 3 3 . . Sentry 3 | . . . 1 2 . Artisan 1 | . . . 1 . . Subdweller 8 | . . . 8 . . Scrapper 1 | . . . . . 1 Best Kill Streak 4 | 2 3 3 4 1 1 Combat Bots Only 3 | . 3 2 2 1 1 Max Kills in Single Turn 3 | 1 3 1 1 1 1 Gunslinging . | . . . . . . Exploded 3 | . 3 . 1 . 1 Melee . | . . . . . . Uniques/NPCs Destroyed . | . . . . . . Combat | -11 -10 -10 -10 -8 -8 -------- Run | Yrd Mat Min Sub Rec Scr Hostile Shots Fired 158 | . 34 36 71 2 15 Missed 57 | . 7 17 25 2 6 Hits 101 | . 27 19 46 . 9 Projectile 101 | . 27 19 46 . 9 Critical Strikes 2 | . 1 . . . 1 Damage Taken 1466 | . 232 215 645 . 374 Core 271 | . 37 33 77 . 124 Absorbed by Shields . | . . . . . . Core Remaining (%) 100 | 100 . . . . . Volleys Fired 180 | 7 30 34 93 3 13 Largest 2 | 2 2 2 2 2 1 Hottest 136 | 80 136 136 136 136 30 Shots Fired 336 | 14 59 68 176 6 13 Gun 14 | 14 . . . . . Cannon 301 | . 58 68 169 6 . Launcher 21 | . 1 . 7 . 13 Special . | . . . . . . Kinetic . | . . . . . . Thermal 301 | . 58 68 169 6 . Explosive 21 | . 1 . 7 . 13 Electromagnetic 14 | 14 . . . . . Robot Hit Streak 11 | 3 7 6 11 6 7 Robot Miss Streak 4 | 2 4 3 2 . . Penetration Max . | . . . . . . Secondary Targets . | . . . . . . Shots Hit Robots 138 | 8 30 25 71 3 1 Core Hits 67 | 2 17 13 30 3 2 Critical Kills 4 | . . 2 2 . . Critical Parts Destroyed . | . . . . . . Critical Strikes 5 | 1 . 2 2 . . Meltdown 4 | . . 2 2 . . Corrupt 1 | 1 . . . . . Melee Attacks 2 | . 1 . . . 1 Impact 1 | . 1 . . . . Slashing 1 | . . . . . 1 Piercing . | . . . . . . Sneak Attacks . | . . . . . . Combat Hostiles . | . . . . . . Follow-up Attacks . | . . . . . . Damage Inflicted 3668 | 121 789 598 1606 93 461 Guns 86 | 86 . . . . . Cannons 2738 | . 638 598 1420 82 . Explosions 817 | 35 135 . 186 . 461 Melee 16 | . 16 . . . . Ramming 11 | . . . . 11 . Kinetic . | . . . . . . Thermal 2773 | 35 638 598 1420 82 . Explosive 782 | . 135 . 186 . 461 Electromagnetic 86 | 86 . . . . . Impact 16 | . 16 . . . . Slashing . | . . . . . . Piercing . | . . . . . . Highest Corruption . | . . . . . . Average Corruption . | . . . . . . Corruption Purged . | . . . . . . Corruption Blocked . | . . . . . . Overload Shots . | . . . . . . Overflow Damage 79 | . 71 . 4 . 4 Projectiles 7 | . 4 . 3 . . Explosions 72 | . 67 . 1 . 4 Melee . | . . . . . . Knockbacks . | . . . . . . Impact . | . . . . . . Kinetic . | . . . . . . Secondary . | . . . . . . Self-Inflicted Damage 89 | . . . 34 . 55 Shots 3 | . . . 1 . 2 Rammed 2 | . . . . 2 . Targets Rammed 2 | . . . . 2 . Kicked . | . . . . . . Crushed . | . . . . . . Highest Temperature 200 | 54 200 199 84 75 45 Average Temperature 61 | 27 95 83 22 43 31 Received Heat Transfer 372 | . 24 89 126 . 133 Siege Activations . | . . . . . . Martial Activations . | . . . . . . Shielding Activations . | . . . . . . Robots Disrupted . | . . . . . . Combat Hostiles . | . . . . . . Robots Corrupted . | . . . . . . Combat Hostiles . | . . . . . . Parts Fried . | . . . . . . Impact Corruptions . | . . . . . . Robots Melted 4 | . . 2 2 . . Combat Hostiles 3 | . . 1 2 . . Parts Melted 13 | . 1 4 8 . . Heat Transferred 4971 | 50 1147 1073 2553 148 . Parts Sabotaged . | . . . . . . Parts Stolen . | . . . . . . Parts Stripped . | . . . . . . Power Chain Reactions 1 | 1 . . . . . Alert | -11 -10 -10 -10 -8 -8 ------- Run | Yrd Mat Min Sub Rec Scr Maximum Alert Level 1 | . 1 . . . . Low Security (%) 98 | 100 94 100 . 100 . Level 1 1 | . 5 . . . . Level 2 . | . . . . . . Level 3 . | . . . . . . Level 4 . | . . . . . . Level 5 . | . . . . . . High Security . | . . . . . . Max Security . | . . . . . . Peak Influence 222 | 10 222 143 . 51 . Initial 51 | . . 49 . 51 . Average 40 | . 84 45 . 6 . Influence Increases 1315 | 10 389 416 395 105 . Destroy 0b10 Robot/C 800 | . 220 300 240 40 . Destroy 0b10 Robot/NC 70 | 10 35 20 . 5 . Destroy Leader 126 | . 56 50 20 . . Allied During Kill 46 | . . 31 15 . . Select Force Hacks 60 | . . . . 60 . Disable Machine 60 | . 45 15 . . . Destroy Structure 3 | . 3 . . . . Lose Combat Pursuer 150 | . 30 . 120 . . Influence Decreases 1315 | 10 261 544 287 213 . Entered New Map 136 | . . 79 . 57 . Time Decay 1069 | 10 251 435 217 156 . Lost Part 70 | . 10 10 50 . . Lost Ally 40 | . . 20 20 . . Squads Dispatched 2 | . 2 . . . . Investigation . | . . . . . . Extermination . | . . . . . . Reinforcement 2 | . 2 . . . . Assault . | . . . . . . Garrison . | . . . . . . Intercept . | . . . . . . Searches Triggered . | . . . . . . Construction Impeded . | . . . . . . Haulers Reinforced . | . . . . . . Active Scanning Responses . | . . . . . . Cargo Convoy Interrupts . | . . . . . . Stealth | -11 -10 -10 -10 -8 -8 --------- Run | Yrd Mat Min Sub Rec Scr Distress Signals 2 | . 2 . . . . Communications Jammed . | . . . . . . Distress Signals . | . . . . . . Times Spotted 63 | . 17 14 27 2 3 Peak Tracking Total 4 | . 4 3 4 1 2 Tactical Retreats 10 | . 1 1 8 . . Traps | -11 -10 -10 -10 -8 -8 ------- Run | Yrd Mat Min Sub Rec Scr Traps Triggered 2 | . 2 . . . . Indirectly . | . . . . . . Trap Hack Attempts . | . . . . . . Triggered . | . . . . . . Disarmed . | . . . . . . Reprogrammed . | . . . . . . Reused . | . . . . . . Traps Extracted . | . . . . . . Installed . | . . . . . . Triggered . | . . . . . . Machines | -11 -10 -10 -10 -8 -8 ---------- Run | Yrd Mat Min Sub Rec Scr Machines Disabled 13 | . 3 1 6 . 3 Max in Single Turn 3 | . 2 . 3 . 1 Machines Repaired . | . . . . . . Machines Dismantled . | . . . . . . Machines Sabotaged . | . . . . . . Overloaded Fab Kills . | . . . . . . Hacking | -11 -10 -10 -10 -8 -8 --------- Run | Yrd Mat Min Sub Rec Scr Machines Accessed 12 | . 3 . 2 3 4 Terminals 3 | . 2 . . 1 . Fabricators . | . . . . . . Repair Stations . | . . . . . . Recycling Units 3 | . 1 . . 2 . Scanalyzers . | . . . . . . Garrison Access . | . . . . . . Total Hacks 38 | . 3 . 5 7 23 Successful 30 | . . . 5 2 23 Failed 8 | . 3 . . 5 . Catastrophic . | . . . . . . Database Lockouts . | . . . . . . Manual 10 | . 3 . . 7 . Terminals 5 | . 2 . . 3 . Fabricators . | . . . . . . Repair Stations . | . . . . . . Recycling Units 5 | . 1 . . 4 . Scanalyzers . | . . . . . . Garrison Access . | . . . . . . Terminal Hacks 28 | . . . 5 . 23 Record 25 | . . . 4 . 21 Open Door 1 | . . . . . 1 Proto ID Catalog 2 | . . . 1 . 1 Fabricator Hacks . | . . . . . . Repair Station Hacks . | . . . . . . Recycling Unit Hacks . | . . . . . . Scanalyzer . | . . . . . . Garrison Access Hacks . | . . . . . . Unauthorized Hacks 2 | . . . . 2 . Terminals . | . . . . . . Fabricators . | . . . . . . Repair Stations . | . . . . . . Recycling Units 2 | . . . . 2 . Tunnel 2 | . . . . 2 . Scanalyzers . | . . . . . . Garrison Access . | . . . . . . Data Cores Recovered . | . . . . . . Used . | . . . . . . Hacking Detections 3 | . 2 . . 1 . Full Trace Events . | . . . . . . Feedback Events . | . . . . . . Feedback Blocked . | . . . . . . Robot Schematics Acquired . | . . . . . . Robots Built . | . . . . . . Authchips . | . . . . . . Time . | . . . . . . Total Robot Build Rating . | . . . . . . Part Schematics Acquired . | . . . . . . Parts Built . | . . . . . . Authchips . | . . . . . . Time . | . . . . . . Total Part Build Rating . | . . . . . . Part Studies Acquired . | . . . . . . Parts Repaired . | . . . . . . Time . | . . . . . . Parts Recycled . | . . . . . . Recycled Matter . | . . . . . . Retrieved Matter . | . . . . . . Retrieved Components . | . . . . . . Parts Scanalyzed . | . . . . . . Part Schematics Acquired . | . . . . . . Parts Damaged . | . . . . . . Bothacking | -11 -10 -10 -10 -8 -8 ------------ Run | Yrd Mat Min Sub Rec Scr Used RIF Installer . | . . . . . . Robots Hacked . | . . . . . . Non-combat . | . . . . . . Combat . | . . . . . . Robot Hacks Applied . | . . . . . . Relay Couplers Released . | . . . . . . Fabnet Peak Effective % . | . . . . . . Robots Rewired . | . . . . . . Allies Hacked . | . . . . . . Hacks Repelled . | . . . . . . Allies | -11 -10 -10 -10 -8 -8 -------- Run | Yrd Mat Min Sub Rec Scr Total Allies 5 | . . 5 . . . Largest Group 3 | . . 3 3 . . Highest-Rated Group 41 | . . 41 40 . . Highest-Rated Ally 31 | . . 31 16 . . Total Orders . | . . . . . . Ally Attacks 68 | . . 26 42 . . Total Damage 805 | . . 319 486 . . Kills 13 | . . 8 5 . . Allies Corrupted . | . . . . . . Allies Melted . | . . . . . . Intel | -11 -10 -10 -10 -8 -8 ------- Run | Yrd Mat Min Sub Rec Scr Active Infowar (turns) 703 | . . . . . 703 Terrain 703 | . . . . . 703 Robot Analysis Total . | . . . . . . Derelict Logs Recovered 10 | . . 2 3 . 5 Drone Launches . | . . . . . . Drone Recoveries . | . . . . . . Exploration | -11 -10 -10 -10 -8 -8 ------------- Run | Yrd Mat Min Sub Rec Scr Turns Passed 13656 | 117 968 1599 5631 1369 3972 Spaces Moved 5483 | 56 539 551 1885 395 2057 Core 10 | 4 . . . . 6 Treads 2658 | 52 107 390 1370 395 344 Legs . | . . . . . . Wheels 2815 | . 432 161 515 . 1707 Hover . | . . . . . . Flight . | . . . . . . Fastest Speed 50 | 50 115 130 140 340 90 Average Speed 228 | 152 143 265 281 340 171 Slowest Speed 480 | 160 320 320 480 340 340 Overloaded Moves . | . . . . . . Propulsion Burnouts . | . . . . . . Robots Hopped . | . . . . . . Potential Cave-ins 6 | . . . . . 6 Cave-ins Triggered 1 | . . . . . 1 Exploration Rate (%) 73 | 3 82 93 97 78 88 Regions Visited 5 Branch Regions 4 Pre-discovered Areas 9 | . . 1 1 2 5 Known Exits Taken . | . . . . . . Unknown Exits Taken 5 | 1 1 1 1 1 . Scrap Searched 6 | . . 1 3 . 2 Spaces Dug . | . . . . . . Terrain Destroyed 128 | 2 . . 37 . 89 Melee . | . . . . . . Projectile . | . . . . . . AOE 128 | 2 . . 37 . 89 Terrain Rammed . | . . . . . . Walls Destroyed . | . . . . . . Machines Disabled . | . . . . . . Actions | -11 -10 -10 -10 -8 -8 --------- Run | Yrd Mat Min Sub Rec Scr Total 6317 | 71 675 622 2028 418 2503 Wait 412 | . 42 26 11 7 326 Move 5477 | 55 538 550 1884 394 2056 Hop . | . . . . . . Pick Up 103 | 3 31 6 13 6 44 Fast Attach 22 | 6 8 . 2 . 6 Attach 18 | . 3 2 5 . 8 Detach 5 | . 2 . . . 3 Swap 19 | . 7 . 8 . 4 Drop 76 | . 13 4 12 6 41 Fire 180 | 7 30 34 93 3 13 Melee 2 | . 1 . . . 1 Ram . | . . . . . . Kick . | . . . . . . Crush 2 | . . . . 2 . Escape Stasis 1 | . . . . . 1 Rewire . | . . . . . . Trap . | . . . . . . Miscellaneous . | . . . . . . Route ------- -11/Scrapyard -10/Materials (discovered 2 exits: [*Mat] / [*Min]) -10/Mines (discovered 4 exits: [*Mat x2] / [*Exi] / *Sub) -10/Subcaves (discovered 2 exits: [*Mat] / *Rec) -8/Recycling (discovered 2 exits: *Fac / *Scr) -8/Scraptown (discovered 2 exits: *Fac x2) History --------- Turn | Location | Event 3 | -11/Scrapyard | Discovered new exit (range 15) 118 | -11/Scrapyard | Entered Materials 312 | -10/Materials | Build established: Mutant 791 | -10/Materials | Discovered new exit (range 9) 836 | -10/Materials | Discovered new exit (range 8) 1086 | -10/Materials | Entered Mines 1094 | -10/Mines | Learned location of Zion (-6) 1124 | -10/Mines | A weapon hastily lodged in a ceiling crevice suddenly fell to the ground 1275 | -10/Mines | Discovered new exit (range 10) 1347 | -10/Mines | Discovered new exit (range 15) 1438 | -10/Mines | Learned Materials interactive machine intel 1747 | -10/Mines | Excavation squad dispatched 1747 | -10/Mines | A large section of the Mines collapsed 2048 | -10/Mines | Deemed a non-threat by the Exiles lab entrance 2048 | -10/Mines | Discovered new exit (range 5) 2294 | -10/Mines | Assisted by bots powering up and referring to "LRC-V3" 2670 | -10/Mines | Discovered new exit (range 3) 2685 | -10/Mines | Entered Subcaves 2685 | -10/Subcaves | Accompanied by 3 allies 3421 | -10/Subcaves | Discovered new exit (range 8) 4049 | -10/Subcaves | Shifting Twisted Machinery released Flamer 4095 | -10/Subcaves | Shifting Twisted Machinery released Battle Rifle 4864 | -10/Subcaves | A swath of the cavern ceiling suddenly collapsed 5052 | -10/Subcaves | Discovered new exit (range 12) 5323 | -10/Subcaves | Ambushed by angry Subdweller bent on revenge 5385 | -10/Subcaves | Core integrity fell below 50% 5573 | -10/Subcaves | Shifting Twisted Machinery released Flamer 5574 | -10/Subcaves | Learned Materials emergency access door positions 5633 | -10/Subcaves | Shifting Twisted Machinery released Mak. System Restoration Module 5786 | -10/Subcaves | Lost 3 parts (2n1w) 6025 | -10/Subcaves | Learned Materials stockpile data 6040 | -10/Subcaves | Shifting Twisted Machinery released Spk. Treads 6076 | -10/Subcaves | Shifting Twisted Machinery released Mak. Laser 6781 | -10/Subcaves | Visited 4L-MR0's lab 6825 | -10/Subcaves | Found Maxwheels 8068 | -10/Subcaves | Visited Clippyterm 8078 | -10/Subcaves | Learned Factory trap positions 8316 | -10/Subcaves | Entered Recycling 8556 | -8/Recycling | Scanned before Scraplab entrance 9055 | -8/Recycling | Discovered new exit (range 14) 9647 | -8/Recycling | Entered Scraplab 9675 | -8/Recycling | Discovered new exit (range 3) 9685 | -8/Recycling | Entered Scraptown 10056 | -8/Scraptown | Scanned Subdweller tech in exchange for log data 10063 | -8/Scraptown | Learned Research terminal intel 10066 | -8/Scraptown | Learned location of Warlord (-4) 10070 | -8/Scraptown | Learned 8 Factory zone layouts 10087 | -8/Scraptown | Learned location of 1 exit from Research 10210 | -8/Scraptown | Heard Great Nut preacher, LISTEN AND RECITE! 10254 | -8/Scraptown | Visited UFD Registry 10319 | -8/Scraptown | Registered with UFD as "Monodriver" 10561 | -8/Scraptown | Guru changed UFD alias to "Datawalker" 10653 | -8/Scraptown | Discovered new exit (range 13) 11156 | -8/Scraptown | Visited Sword Containment 11172 | -8/Scraptown | Found Prototype Slashing Weapon 11172 | -8/Scraptown | Identified Companion Sword 11211 | -8/Scraptown | Visited Science Guys 11259 | -8/Scraptown | Visited Science Testing Area 11278 | -8/Scraptown | Visited Junk Repository 11540 | -8/Scraptown | Visited Scrapoid Pod Storage 11547 | -8/Scraptown | Found Scrapoid Pod 11624 | -8/Scraptown | Visited Abandonware Association 11642 | -8/Scraptown | Learned abandonware demo "REPAIR.EXE" 11915 | -8/Scraptown | Visited Comm Corps 11980 | -8/Scraptown | Visited Assassins FH 12012 | -8/Scraptown | Visited The Evicted 12179 | -8/Scraptown | Visited Derelict Rescue Squad 12191 | -8/Scraptown | Found DRS Beacon 12218 | -8/Scraptown | Visited Observation Area 12231 | -8/Scraptown | Visited Cartography Club 12299 | -8/Scraptown | Found Surveybot 17 Chip 12352 | -8/Scraptown | Learned location of Lower Caves (-6) 12352 | -8/Scraptown | Learned location of Proximity Caves (-5) 12352 | -8/Scraptown | Learned location of Cetus (-6) 12352 | -8/Scraptown | Learned 8 Factory zone layouts 12352 | -8/Scraptown | Learned 24 Factory zone layouts 12352 | -8/Scraptown | Learned 4 Access zone layouts 12352 | -8/Scraptown | Learned 4 Recycling zone layouts 12352 | -8/Scraptown | Learned 16 Upper Caves zone layouts 12352 | -8/Scraptown | Learned Research emergency access door positions 12352 | -8/Scraptown | Learned 24 Upper Caves zone layouts 12352 | -8/Scraptown | Learned 8 Proximity Caves zone layouts 12352 | -8/Scraptown | Learned location of 3 exits from Proximity Caves 12352 | -8/Scraptown | Identified exit to Factory 12352 | -8/Scraptown | Learned location of 2 exits from Research 12380 | -8/Scraptown | Found Deep Structural Scanner 13116 | -8/Scraptown | Met Optimus 13116 | -8/Scraptown | Accepted into 0bPrime 13516 | -8/Scraptown | Civil war broke out across Scraptown 13539 | -8/Scraptown | Found Prototype Special Weapon 13539 | -8/Scraptown | Identified Exp. Plasma Cutter 13583 | -8/Scraptown | Found Scrapoid Pod 13588 | -8/Scraptown | Found Scrapoid Pod 13593 | -8/Scraptown | Found Scrapoid Pod 13596 | -8/Scraptown | Found Scrapoid Pod 13602 | -8/Scraptown | Found Scrapoid Pod 13613 | -8/Scraptown | Crushed by falling debris 13614 | -8/Scraptown | Core integrity fell below 20% 13657 | -8/Scraptown | Destroyed by RS-PY5(j) with Overtuned Pulse Rifle Last Messages --------------- 13593_ Acquired Scrapoid Pod. 13594_ Dropped Com. Wheel. 13595_ Dropped DRS Beacon. 13596_ Acquired Scrapoid Pod. 13601_ Dropped System Shield. 13602_ Dropped Hacking Suite. 13602_ Acquired Scrapoid Pod. 13605_ The unstable cave ceiling collapses. 13613_ Crushed by falling debris. 13619_ Lgt. Deuterium Engine destroyed. 13619_ Destroyed Lgt. Deuterium Engine. 13622_ The unstable cave ceiling collapses. 13645_ LA-F0U(j) heat damages Mak. Microdissipator Network. 13646_ Critical hit (Burn: +50). 13648_ Arm. Huge Wheel destroyed. 13650_ LA-F0U(j) destroyed. 13653_ Adv. Terrain Scanner destroyed. 13656_ RS-PY5(j) heat short circuits Ovr. Titanium Leg. Map ----- +----------------------------------------------------+ | | | | | | | | | | | | | | | | | | | ??????????????????????????????#??????????????????? | | ?????????????????????????????????????????????????? | | ??????????#??????#???????????????????#???????????? | | ??????????????????#??????#?????????????#?????????? | | ????#??????#???????#?????????????????????????????? | | ?????????#?????????????#????????????????#????????? | | ???#??????#???#?????#?????????###????????????????? | | ????#?##????????????#???#??????#??????#??#???????? | | ?#????#???????????#?????#????????????????????????? | | ???#?#???????#?????????????#?????????????????????? | | ?????????????#????????????????????#??????????????? | | ???#??#???#???##?????#????????????#??????????????? | | #???????????#?????????????#??????????????????????? | | ????#?#???#####################?#####????????????? | | ????????##?"""##"""##"" ##"""#??## ##??????